bitfinex-derivatives/quotes_SOLF0:USTF0_20250901
["timestamp","ask_amount","ask_price","bid_price","bid_amount"]
[1756739348947,2.79466152,200.16,200.04,10.77466152]
[1756739349850,8.07,200.15,200.04,10.77466152]
[1756739350145,2.79466152,200.16,200.04,10.77466152]
[1756739350549,8.07,200.12,200.01,4.1867055]
[1756739350750,8.07,200.12,200.0,7.98]
[1756739350949,8.07,200.11,200.0,10.77466152]
[1756739351247,8.07,200.11,200.01,7.98]
[1756739355552,8.07,200.11,200.01,10.77466152]
[1756739356650,2.79466152,200.11,200.01,10.77466152]
[1756739356848,8.07,200.1,200.01,10.77466152]
[1756739357454,8.07,200.1,200.01,7.98]
[1756739361555,2.79466152,200.11,199.98,10.77466152]
[1756739361754,8.07,200.1,199.98,10.77466152]
[1756739361955,2.79466152,200.11,199.98,10.77466152]
[1756739362556,8.07,200.1,199.98,10.77466152]
[1756739362962,8.07,200.1,199.99,7.98]
[1756739363157,8.07,200.1,200.01,2.79466152]
[1756739363357,8.07,200.1,200.02,7.98]
[1756739364555,8.07,200.07,199.98,7.98]
[1756739367259,2.79466152,200.08,199.95,10.77466152]
[1756739367465,8.07,200.07,199.95,10.77466152]
[1756739369868,2.79466152,200.08,199.95,10.77466152]
[1756739370062,8.07,200.07,199.95,10.77466152]
[1756739370263,8.07,200.07,199.95,7.98]
[1756739370660,8.07,200.04,199.95,7.98]
[1756739373568,8.07,200.01,199.91,7.98]
[1756739373773,2.79466152,199.99,199.91,7.98]
[1756739373969,8.07,199.98,199.91,7.98]
[1756739375973,2.79466152,199.97,199.85,2.79466152]
[1756739376168,8.07,199.96,199.86,7.98]
[1756739379069,2.79466152,199.91,199.8,8.05]
[1756739379268,7.78,199.9,199.8,8.05]
[1756739380372,2.79466152,199.88,199.8,8.05]
[1756739380671,7.78,199.87,199.8,8.05]
[1756739382966,7.78,199.9,199.81,2.79466152]
[1756739383171,343.92,200.09,199.88,8.05]
[1756739383371,7.78,200.0,199.9,2.79466152]
[1756739383674,7.78,200.0,199.9,10.84466152]
[1756739384173,10.57466152,200.04,199.93,2.79466152]
[1756739384369,7.78,200.04,199.94,8.05]
[1756739385779,7.78,200.01,199.9,2.79466152]
[1756739386375,7.78,200.01,199.91,8.05]
[1756739386571,7.78,200.01,199.9,2.79466152]
[1756739386572,7.78,200.05,199.94,8.05]
[1756739386774,7.78,200.05,199.96,2.79466152]
[1756739387175,7.78,200.03,199.94,8.05]
[1756739387479,7.78,200.03,199.96,2.79466152]
[1756739387675,7.78,200.03,199.97,8.05]
[1756739388279,133.36,200.07,199.97,8.05]
[1756739389372,7.78,200.07,199.97,8.05]
[1756739390173,10.57466152,200.07,199.97,8.05]
[1756739390583,10.57466152,200.07,199.91,8.05]
[1756739390776,10.57466152,200.07,199.94,2.79466152]
[1756739391673,10.57466152,200.07,199.91,8.05]
[1756739391878,2.79466152,200.01,199.91,8.05]
[1756739392078,7.78,199.99,199.91,8.05]
[1756739392376,2.79466152,199.98,199.87,8.05]
[1756739392677,2.79466152,199.95,199.87,8.05]
[1756739392878,7.78,199.94,199.87,8.05]
[1756739394182,4.48582635,199.97,199.87,8.05]
[1756739394388,7.78,199.98,199.87,8.05]
[1756739394785,125.58,199.97,199.87,8.05]
[1756739394987,7.78,199.98,199.87,8.05]
[1756739395487,4.48582635,199.97,199.87,8.05]
[1756739395688,7.78,199.96,199.87,8.05]
[1756739395988,85.14,199.96,199.87,8.05]
[1756739397386,7.78,199.96,199.87,8.05]
[1756739400588,7.78,200.01,199.9,8.05]
[1756739401592,63.58,200.0,199.9,8.05]
[1756739401788,7.78,199.99,199.9,8.05]
[1756739402689,7.78,199.99,199.87,8.05]
[1756739403393,7.78,199.99,199.9,8.05]
[1756739404591,7.78,199.99,199.83,8.05]
[1756739404783,125.58,200.03,199.83,8.05]
[1756739404784,7.78,199.96,199.83,8.05]
[1756739404990,12.26582635,199.94,199.83,8.05]
[1756739405186,7.78,199.92,199.78,8.05]
[1756739406299,24.56,199.93,199.78,8.05]
[1756739406300,7.78,199.9,199.78,8.05]
[1756739406792,7.78,199.88,199.78,8.05]
[1756739407700,7.61,199.93,199.8,7.46]
[1756739407895,125.88,199.92,199.8,7.46]
[1756739408089,7.61,199.93,199.8,7.46]
[1756739408295,133.49,199.93,199.83,7.46]
[1756739409198,7.61,199.92,199.79,11.94582635]
[1756739409600,7.61,199.92,199.79,7.46]
[1756739409799,4.48582635,199.91,199.79,7.46]
[1756739409996,7.61,199.9,199.79,7.46]
[1756739410901,7.61,199.9,199.74,7.46]
[1756739411694,4.48582635,199.88,199.74,7.46]
[1756739411902,7.61,199.87,199.74,7.46]
[1756739412097,4.48582635,199.88,199.74,7.46]
[1756739412098,7.61,199.85,199.74,7.46]
[1756739413309,12.09582635,199.85,199.68,7.46]
[1756739413706,12.09582635,199.85,199.71,7.46]
[1756739414107,42.76,199.84,199.71,7.46]
[1756739414304,72.62,199.83,199.71,7.46]
[1756739414509,7.61,199.82,199.71,7.46]
[1756739414806,86.55,199.82,199.71,7.46]
[1756739415002,7.61,199.82,199.71,7.46]
[1756739415209,7.61,199.86,199.73,7.46]
[1756739415511,17.55,199.86,199.74,4.48582635]
[1756739415699,17.55,199.86,199.75,7.46]
[1756739415700,60.13,199.86,199.75,7.46]
[1756739416505,7.61,199.86,199.75,7.46]
[1756739417205,7.61,199.86,199.77,4.48582635]
[1756739417410,46.87,199.9,199.78,7.46]
[1756739418209,51.35582635,199.9,199.78,7.46]
[1756739418601,80.38,199.89,199.78,7.46]
[1756739418808,7.61,199.88,199.78,7.46]
[1756739420412,7.61,199.88,199.73,7.46]
[1756739421315,4.48582635,199.87,199.73,7.46]
[1756739421619,7.61,199.86,199.73,7.46]
[1756739422715,7.61,199.91,199.79,7.46]
[1756739423211,7.61,199.88,199.75,7.46]
[1756739423411,7.61,199.86,199.75,7.46]
[1756739423810,12.09582635,199.86,199.75,7.46]
[1756739424010,12.09582635,199.86,199.7,7.46]
[1756739424214,51.64,199.85,199.73,7.46]
[1756739425312,7.61,199.84,199.73,7.46]
[1756739427215,100.89,199.84,199.73,7.46]
[1756739428109,7.61,199.84,199.73,7.46]
[1756739428314,134.09,199.84,199.73,7.46]
[1756739429113,7.61,199.84,199.73,7.46]
[1756739429314,134.03,199.84,199.73,7.46]
[1756739429611,126.42,199.9,199.77,7.46]
[1756739429913,7.61,199.89,199.77,7.46]
[1756739432512,7.61,199.87,199.77,7.46]
[1756739432710,7.61,199.87,199.73,7.46]
[1756739433416,7.61,199.83,199.73,7.46]
[1756739434121,7.61,199.81,199.73,7.46]
[1756739434623,7.61,199.81,199.7,2.80729443]
[1756739435018,126.4,199.88,199.69,7.46]
[1756739435019,7.61,199.78,199.69,7.46]
[1756739435718,42.31,199.78,199.69,7.46]
[1756739436322,88.87,199.78,199.69,7.46]
[1756739439027,4.49385082,199.8,199.63,4.49385082]
[1756739439323,7.97,199.77,199.64,7.65]
[1756739440626,12.46385082,199.77,199.64,7.65]
[1756739441923,7.97,199.75,199.64,7.65]
[1756739442925,4.49385082,199.74,199.64,7.65]
[1756739443225,7.97,199.73,199.56,4.49385082]
[1756739443527,7.97,199.73,199.57,7.65]
[1756739443932,19.36,199.72,199.57,7.65]
[1756739444226,27.25,199.71,199.57,7.65]
[1756739444421,34.73,199.71,199.57,7.65]
[1756739445625,39.22385082,199.71,199.57,7.65]
[1756739445820,12.46385082,199.71,199.57,7.65]
[1756739446032,7.97,199.69,199.57,7.65]
[1756739446427,34.17,199.69,199.57,7.65]
[1756739446729,7.97,199.69,199.57,7.65]
[1756739447426,7.97,199.69,199.58,4.49385082]
[1756739447622,7.97,199.69,199.59,7.65]
[1756739447827,9.88,199.72,199.59,7.65]
[1756739448224,9.88,199.72,199.58,4.49385082]
[1756739448225,7.97,199.73,199.61,4.49385082]
[1756739448426,7.97,199.73,199.62,7.65]
[1756739448630,9.48,199.76,199.65,7.65]
[1756739448824,7.97,199.75,199.65,7.65]
[1756739451028,7.97,199.79,199.67,4.49385082]
[1756739451227,7.97,199.79,199.68,7.65]
[1756739452632,7.97,199.76,199.6,7.65]
[1756739452830,7.97,199.76,199.62,7.65]
[1756739453427,7.97,199.73,199.62,7.65]
[1756739455837,12.46385082,199.77,199.62,7.65]
[1756739456038,7.97,199.77,199.65,7.65]
[1756739457138,7.97,199.77,199.63,4.5073]
[1756739457139,7.97,199.82,199.7,4.49385082]
[1756739457339,58.19,199.82,199.71,7.65]
[1756739457835,7.97,199.82,199.71,7.65]
[1756739458737,134.49,199.82,199.71,7.65]
[1756739458944,7.97,199.82,199.71,4.49385082]
[1756739459140,7.97,199.82,199.72,7.65]
[1756739462045,126.64,199.81,199.72,7.65]
[1756739462343,7.97,199.82,199.72,7.65]
[1756739462940,336.4,199.85,199.72,7.65]
[1756739463152,336.4,199.85,199.75,7.65]
[1756739463349,126.68,199.87,199.78,7.65]
[1756739463544,7.97,199.86,199.78,7.65]
[1756739464949,7.97,199.86,199.74,12.14385082]
[1756739465249,7.97,199.86,199.74,7.65]
[1756739465649,4.49385082,199.84,199.69,7.65]
[1756739465845,7.97,199.83,199.69,7.65]
[1756739466845,7.97,199.83,199.69,12.14385082]
[1756739467244,4.49385082,199.84,199.69,12.14385082]
[1756739467449,7.97,199.83,199.69,12.14385082]
[1756739467651,7.97,199.83,199.69,7.65]
[1756739467946,7.54,199.8,199.69,7.65]
[1756739468141,7.54,199.78,199.69,7.65]
[1756739468946,7.54,199.78,199.64,12.25385082]
[1756739469155,7.54,199.77,199.64,7.76]
[1756739469554,7.54,199.77,199.68,7.76]
[1756739472854,20.86,199.78,199.64,12.25385082]
[1756739473050,7.54,199.77,199.64,12.25385082]
[1756739473454,20.86,199.78,199.64,12.25385082]
[1756739473656,7.54,199.77,199.64,12.25385082]
[1756739473959,7.54,199.76,199.64,7.76]
[1756739474650,69.08,199.75,199.64,7.76]
[1756739475656,7.54,199.74,199.64,7.76]
[1756739478059,134.06,199.74,199.64,7.76]
[1756739478764,138.55385082,199.74,199.6,7.76]
[1756739479165,12.03385082,199.74,199.6,7.76]
[1756739479467,7.54,199.72,199.6,7.76]
[1756739479762,134.1,199.72,199.6,7.76]
[1756739480156,134.08,199.72,199.6,7.76]
[1756739482163,7.54,199.72,199.6,7.76]
[1756739482469,7.54,199.72,199.63,7.76]
[1756739484565,12.03385082,199.72,199.58,7.76]
[1756739486570,4.49385082,199.69,199.58,7.76]
[1756739486772,7.54,199.68,199.58,7.76]
[1756739487472,7.54,199.65,199.54,7.76]
[1756739491368,12.03385082,199.65,199.48,4.49385082]
[1756739491574,12.03385082,199.65,199.49,7.76]
[1756739491769,7.54,199.61,199.49,7.76]
[1756739492166,52.96,199.61,199.5,7.76]
[1756739492569,7.54,199.61,199.5,7.76]
[1756739495478,12.03385082,199.61,199.44,7.76]
[1756739495980,7.54,199.59,199.44,7.76]
[1756739496180,7.54,199.59,199.47,7.76]
[1756739497284,7.54,199.59,199.48,4.49385082]
[1756739497776,8.01,199.65,199.49,7.76]
[1756739497982,8.01,199.62,199.52,7.41]
[1756739498582,8.01,199.62,199.53,4.5098]
[1756739498776,4.49385082,199.69,199.54,11.90385082]
[1756739498982,45.71,199.68,199.55,7.41]
[1756739499179,8.01,199.68,199.55,7.41]
[1756739499387,52.97,199.68,199.55,7.41]
[1756739499988,52.97,199.68,199.48,16.52]
[1756739499989,336.6,199.71,199.61,7.41]
[1756739500482,8.01,199.7,199.61,7.41]
[1756739500678,8.01,199.74,199.63,4.49385082]
[1756739500891,8.01,199.74,199.64,7.41]
[1756739504683,134.49,199.74,199.64,7.41]
[1756739505087,8.01,199.74,199.64,7.41]
[1756739505391,8.01,199.82,199.65,7.41]
[1756739505685,8.01,199.8,199.68,7.41]
[1756739507288,12.50385082,199.8,199.65,7.41]
[1756739507587,8.01,199.73,199.61,7.41]
[1756739507783,57.15,199.73,199.61,7.41]
[1756739508887,99.55,199.73,199.61,7.41]
[1756739509386,8.01,199.73,199.61,7.41]
[1756739509594,8.01,199.73,199.62,7.41]
[1756739509785,8.01,199.79,199.65,7.41]
[1756739509990,134.61,199.79,199.65,7.41]
[1756739510687,134.61,199.79,199.65,11.90385082]
[1756739510891,8.01,199.78,199.65,7.41]
[1756739512188,126.6,199.77,199.65,7.41]
[1756739512489,8.01,199.76,199.65,7.41]
[1756739512893,8.01,199.76,199.66,7.41]
[1756739513095,8.01,199.8,199.69,7.41]
[1756739514894,8.01,199.8,199.7,4.49385082]
[1756739516393,8.01,199.8,199.69,7.41]
[1756739520002,134.47,199.8,199.69,7.41]
[1756739521392,8.01,199.8,199.69,7.41]
[1756739521596,8.01,199.8,199.69,11.9161]
[1756739521597,126.38,199.79,199.69,11.9161]
[1756739521793,126.38,199.79,199.7,7.41]
[1756739522202,336.74,199.83,199.71,4.49385082]
[1756739522402,336.74,199.83,199.72,7.41]
[1756739522804,336.74,199.83,199.75,7.41]
[1756739523304,8.01,199.84,199.75,7.41]
[1756739525502,8.01,199.84,199.75,11.90385082]
[1756739525902,8.01,199.84,199.75,7.41]
[1756739526098,85.36,199.87,199.75,7.41]
[1756739526298,8.01,199.88,199.79,7.41]
[1756739526498,8.01,199.88,199.79,11.9138]
[1756739527207,8.01,199.88,199.79,7.41]
[1756739528408,4.49385082,199.94,199.82,8.14]
[1756739528409,126.44,199.93,199.82,8.14]
[1756739528600,7.83,199.92,199.82,8.14]
[1756739530802,126.48,199.91,199.82,8.14]
[1756739531003,7.83,199.9,199.82,8.14]
[1756739534006,344.37,199.95,199.85,8.14]
[1756739534304,470.69,199.95,199.85,8.14]
[1756739535012,344.37,199.95,199.85,8.14]
[1756739535407,4.49385082,200.03,199.88,8.14]
[1756739535607,7.83,200.02,199.88,8.14]
[1756739535811,4.49385082,200.06,199.83,15.14]
[1756739535812,7.83,200.0,199.91,8.14]
[1756739538810,7.83,200.04,199.91,8.14]
[1756739539008,56.45,200.04,199.93,8.14]
[1756739541016,7.83,200.04,199.96,12.63385082]
[1756739541215,459.03,200.08,199.97,8.14]
[1756739542512,459.03,200.08,199.92,4.49385082]
[1756739542513,459.03,200.08,200.0,8.14]
[1756739542712,122.65,200.08,200.0,8.14]
[1756739543206,7.83,200.08,200.0,8.14]
[1756739543411,7.83,200.08,199.98,4.49385082]
[1756739543607,7.83,200.08,199.97,8.14]
[1756739544420,7.83,200.08,199.95,4.49385082]
[1756739544609,7.83,200.08,199.93,8.14]
[1756739544808,7.83,200.05,199.93,8.14]
[1756739545009,7.83,200.03,199.93,8.14]
[1756739549318,7.83,200.08,199.96,8.14]
[1756739549515,7.83,200.08,199.99,8.14]
[1756739550915,11.22,200.11,200.01,4.49385082]
[1756739550916,19.05,200.11,200.01,4.49385082]
[1756739551313,0.03397402,200.06,200.02,8.14]
[1756739551619,7.86397402,200.06,199.95,4.49385082]
[1756739554023,7.86397402,200.06,199.94,8.14]
[1756739554615,7.86397402,200.06,199.95,4.49385082]
[1756739556626,7.86397402,200.06,199.94,8.14]
[1756739559122,7.86397402,200.06,199.95,4.49385082]
[1756739559822,7.86397402,200.06,199.91,4.49385082]
[1756739560029,7.55,200.04,199.91,4.49385082]
[1756739560424,4.49385082,200.05,199.9,7.62]
[1756739560425,7.55,200.02,199.9,7.62]
[1756739565937,7.55,200.02,199.9,10.42189734]
[1756739565938,10.35189734,200.02,199.9,10.42189734]
[1756739566124,7.55,200.01,199.9,10.42189734]
[1756739566525,2.80189734,199.99,199.9,10.42189734]
[1756739566829,7.55,199.98,199.9,2.80189734]
[1756739567036,7.55,199.98,199.86,7.62]
[1756739567037,7.55,199.98,199.87,2.80189734]
[1756739568129,7.55,199.98,199.88,7.62]
[1756739569335,7.55,199.98,199.91,7.62]
[1756739571739,41.86,200.04,199.9,2.80189734]
[1756739571740,45.7,200.04,199.94,7.62]
[1756739572334,7.55,200.03,199.94,7.62]
[1756739572638,7.55,200.03,199.96,2.80189734]
[1756739572839,10.35189734,200.03,199.91,2.80189734]
[1756739573336,10.35189734,200.03,199.91,10.42189734]
[1756739573734,7.55,200.03,199.91,10.42189734]
[1756739573937,7.55,200.03,199.94,2.80189734]
[1756739575640,7.55,200.03,199.93,2.80189734]
[1756739577141,7.55,200.03,199.91,7.62]
[1756739577341,2.80189734,200.02,199.91,10.42189734]
[1756739578340,7.55,200.01,199.91,10.42189734]
[1756739579944,2.80189734,200.02,199.91,10.42189734]
[1756739580144,7.55,200.01,199.91,10.42189734]
[1756739582144,7.55,200.06,199.95,7.62]
[1756739582351,133.41,200.06,199.95,7.62]
[1756739582654,7.55,200.06,199.97,2.80189734]
[1756739586952,343.69,200.11,200.0,10.42189734]
[1756739587155,343.69,200.11,200.03,2.80189734]
[1756739587355,343.69,200.11,200.03,10.42189734]
[1756739587746,0.03407401,200.09,200.03,7.62]
[1756739587953,0.03407401,200.09,200.05,10.51189734]
[1756739588351,0.03407401,200.09,200.05,7.71]
[1756739588551,8.15,200.08,200.04,2.80189734]
[1756739588750,8.15,200.08,199.99,2.80189734]
[1756739590348,8.15,200.08,200.0,7.71]
[1756739590550,8.15,200.08,200.02,2.80189734]
[1756739593856,0.03407401,200.09,200.03,7.71]
[1756739594151,0.03407401,200.09,200.05,2.80189734]
[1756739594759,0.03407401,200.09,200.06,7.71]
[1756739596054,0.03407401,200.09,200.08,10.51189734]
[1756739596459,0.03407401,200.09,200.08,2.80189734]
[1756739598065,0.03407401,200.09,200.08,10.51189734]
[1756739600465,0.03407401,200.09,200.08,2.80189734]
[1756739603355,8.18407401,200.09,200.03,2.80189734]
[1756739603663,8.15,200.09,200.03,2.80189734]
[1756739604062,8.15,200.19,200.04,7.71]
[1756739604262,8.15,200.17,200.04,7.71]
[1756739604566,0.03430989,200.08,200.03,2.80189734]
[1756739604767,8.15,200.13,200.04,7.71]
[1756739605362,8.15,200.13,200.06,2.80189734]
[1756739605765,0.032426,200.11,200.06,2.80189734]
[1756739605966,0.032426,200.11,200.07,7.71]
[1756739606371,0.032426,200.11,200.06,2.80189734]
[1756739606566,0.032426,200.11,200.07,7.71]
[1756739606866,0.032426,200.11,200.06,2.80189734]
[1756739607068,0.032426,200.11,200.07,7.71]
[1756739607867,8.182426,200.11,200.07,7.71]
[1756739608269,8.182426,200.11,200.06,2.80189734]
[1756739608270,0.032426,200.11,200.06,2.80189734]
[1756739608567,8.182426,200.11,200.06,2.80189734]
[1756739608960,8.182426,200.11,200.06,10.51189734]
[1756739609763,0.032426,200.11,200.07,7.71]
[1756739610174,0.032426,200.11,200.06,2.80189734]
[1756739610370,0.032426,200.11,200.07,7.71]
[1756739611870,8.182426,200.11,200.07,7.71]
[1756739612274,8.15,200.1,200.02,7.71]
[1756739612574,8.15,200.1,200.02,10.51189734]
[1756739613171,0.03456117,200.08,200.02,10.51189734]
[1756739616476,0.03456117,200.08,200.03,7.71]
[1756739616775,0.03456117,200.08,200.05,2.80189734]
[1756739617679,0.03456117,200.08,200.06,7.71]
[1756739617884,0.03456117,200.08,200.05,2.80189734]
[1756739618479,0.03456117,200.08,200.06,7.91]
[1756739618877,0.03456117,200.08,200.05,2.80189734]
[1756739619179,0.03456117,200.08,200.06,7.91]
[1756739619381,0.03456117,200.08,200.05,2.80189734]
[1756739619582,0.03456117,200.08,200.06,7.91]
[1756739620180,0.03456117,200.08,200.0,2.80189734]
[1756739620379,0.03456117,200.08,200.06,7.91]
[1756739620579,0.03456117,200.08,200.05,2.80189734]
[1756739621980,0.03456117,200.08,200.06,7.91]
[1756739622282,0.03456117,200.08,200.05,2.80189734]
[1756739622581,0.03456117,200.08,200.06,7.91]
[1756739622782,0.03456117,200.08,200.05,2.80189734]
[1756739623182,0.03456117,200.08,200.06,7.91]
[1756739623482,0.03456117,200.08,200.05,2.80189734]
[1756739623785,0.03456117,200.08,200.06,7.91]
[1756739623990,0.03456117,200.08,200.05,10.71189734]
[1756739624787,7.50456117,200.08,200.03,10.71189734]
[1756739625083,7.50456117,200.08,200.04,7.91]
[1756739625283,7.47,200.08,200.04,7.91]
[1756739626586,0.03205609,200.08,200.04,7.91]
[1756739627181,0.03205609,200.08,200.03,2.80189734]
[1756739627683,0.03205609,200.08,200.04,7.91]
[1756739629088,0.03205609,200.08,200.03,2.80189734]
[1756739629387,0.03205609,200.08,200.04,7.91]
[1756739629586,7.50205609,200.08,200.04,7.91]
[1756739629786,7.47,200.07,200.03,2.80189734]
[1756739630191,7.47,200.07,200.0,10.71189734]
[1756739632486,0.03205609,200.08,200.03,2.80189734]
[1756739632879,7.47,200.12,200.04,7.91]
[1756739633191,0.03356582,200.08,200.04,7.91]
[1756739633687,0.03356582,200.08,200.03,2.80189734]
[1756739634082,0.03356582,200.08,200.04,7.91]
[1756739634286,0.03356582,200.08,200.03,2.80189734]
[1756739634492,0.03356582,200.08,200.04,7.91]
[1756739634690,0.03356582,200.08,200.03,2.80189734]
[1756739634891,0.03356582,200.08,200.04,7.91]
[1756739635194,0.03356582,200.08,200.03,2.80189734]
[1756739635590,0.03356582,200.08,200.02,10.71189734]
[1756739638089,7.47,200.07,199.99,2.80189734]
[1756739639593,7.47,200.07,200.0,7.91]
[1756739639993,0.03356582,200.08,200.03,7.91]
[1756739640291,0.03356582,200.08,200.02,2.80189734]
[1756739640594,7.47,200.16,200.06,7.91]
[1756739640889,7.47,200.16,200.08,2.80189734]
[1756739641482,7.47,200.16,200.06,7.91]
[1756739641483,7.47,200.16,200.09,2.80189734]
[1756739641684,7.47,200.16,200.09,10.71189734]
[1756739641986,0.03237666,200.14,200.1,7.91]
[1756739643396,7.50237666,200.14,200.1,7.91]
[1756739645494,7.50237666,200.14,200.08,2.80189734]
[1756739646297,7.50237666,200.14,200.07,7.91]
[1756739646499,7.50237666,200.14,200.08,2.80189734]
[1756739650102,0.03237666,200.14,200.11,2.80189734]
[1756739650491,8.12,200.18,200.12,7.89]
[1756739652299,0.0321516,200.17,200.11,2.80189734]
[1756739652495,0.0321516,200.17,200.11,10.69189734]
[1756739653200,8.1521516,200.17,200.11,2.80189734]
[1756739655404,0.0321516,200.17,200.11,2.80189734]
[1756739655897,0.0321516,200.17,200.11,10.69189734]
[1756739656298,8.1521516,200.17,200.11,10.69189734]
[1756739658298,8.1521516,200.17,200.11,7.89]
[1756739659207,8.1521516,200.17,200.09,2.80189734]
[1756739659398,8.1521516,200.17,200.1,7.89]
[1756739659604,8.1521516,200.17,200.12,2.80189734]
[1756739660006,0.0321516,200.17,200.12,2.80189734]
[1756739660498,8.12,200.16,200.12,2.80189734]
[1756739660706,8.12,200.16,200.09,10.69189734]
[1756739661305,8.12,200.16,200.1,2.80189734]
[1756739662911,8.12,200.16,200.06,2.80189734]
[1756739663306,8.12,200.16,200.05,7.89]
[1756739663512,8.12,200.14,200.05,7.89]
[1756739663714,0.03442431,200.13,200.05,7.89]
[1756739667016,8.12,200.12,200.0,12.07648505]
[1756739667213,8.12,200.12,200.0,7.89]
[1756739668012,0.03284873,200.08,200.0,7.89]
[1756739670312,8.15284873,200.08,200.0,7.89]
[1756739674126,0.03284873,200.08,199.97,10.69189734]
[1756739674326,2.80189734,200.07,199.97,7.89]
[1756739674525,8.12,200.06,199.97,7.89]
[1756739675226,0.03306501,200.04,199.97,7.89]
[1756739677715,0.03306501,200.04,199.93,335.92]
[1756739677716,0.03306501,200.04,199.99,7.67]
[1756739678023,0.03306501,200.04,199.98,2.80189734]
[1756739679327,0.03306501,200.04,199.99,7.67]
[1756739679722,0.03306501,200.04,199.98,2.80189734]
[1756739680026,0.03306501,200.04,199.99,7.67]
[1756739681523,0.03306501,200.04,200.02,7.67]
[1756739681729,0.03306501,200.04,200.01,2.80189734]
[1756739681923,0.03306501,200.04,200.02,7.67]
[1756739682128,0.03306501,200.04,200.01,2.80189734]
[1756739682328,0.03306501,200.04,200.02,7.67]
[1756739682722,0.03306501,200.04,200.01,2.80189734]
[1756739682929,0.03306501,200.04,200.02,7.67]
[1756739683923,8.15,200.16,200.02,7.67]
[1756739684124,8.15,200.16,200.07,7.67]
[1756739685122,8.15,200.16,200.09,0.03763262]
[1756739685328,4.22189734,200.17,200.09,0.03763262]
[1756739685329,8.15,200.13,200.09,0.03763262]
[1756739685828,2.80189734,200.14,200.09,0.03763262]
[1756739686428,8.15,200.13,200.09,0.03763262]
[1756739686624,2.80189734,200.14,200.09,0.03763262]
[1756739687124,8.15,200.13,200.09,0.03763262]
[1756739687325,2.80189734,200.14,200.09,0.03763262]
[1756739687719,8.15,200.13,200.09,0.03763262]
[1756739688118,8.15,200.1,200.09,0.03763262]
[1756739695423,8.15,200.1,200.0,7.67]
[1756739695424,8.65,200.1,200.0,7.67]
[1756739695739,8.15,200.06,199.96,7.67]
[1756739696633,8.15,200.03,199.92,7.67]
[1756739696831,8.15,200.0,199.92,7.67]
[1756739697525,0.03480205,199.98,199.92,7.67]
[1756739700830,0.03480205,199.98,199.85,125.44]
[1756739700831,0.03480205,199.98,199.94,7.67]
[1756739701026,0.03480205,199.98,199.96,2.80189734]
[1756739701230,50.51189734,200.07,199.97,7.67]
[1756739701635,0.03479463,199.99,199.96,2.80189734]
[1756739701836,0.03479463,199.99,199.91,8.68768505]
[1756739702031,8.15,200.06,199.95,10.47189734]
[1756739702237,0.03347427,199.97,199.95,10.47189734]
[1756739702437,0.03347427,199.97,199.96,7.67]
[1756739702634,8.15,200.06,199.96,7.67]